[Event "Late-Titled-Tuesday-Blitz-January-30-2024"]
[Site "Chess.com"]
[Date "2024.01.30"]
[Round "2"]
[White "Talcrifice"]
[Black "pirulillo"]
[Result "1-0"]
[WhiteElo "2527"]
[BlackElo "2293"]
[TimeControl "180+1"]
[EndTime "14:16:54 PST"]
[Termination "Talcrifice won by resignation"]

1. d4 {[%clk 0:03:00.9]} 1... Nf6 {[%clk 0:02:58.9]} 2. c4 {[%clk 0:03:01.4]}
2... g6 {[%clk 0:02:58]} 3. g3 {[%clk 0:03:01.1]} 3... Bg7 {[%clk 0:02:58.4]} 4.
Bg2 {[%clk 0:03:01.7]} 4... O-O {[%clk 0:02:58.8]} 5. Nf3 {[%clk 0:03:02.3]}
5... d6 {[%clk 0:02:59]} 6. O-O {[%clk 0:03:02.8]} 6... Bf5 {[%clk 0:02:50.1]}
7. Nc3 {[%clk 0:03:02.5]} 7... Ne4 {[%clk 0:02:49.6]} 8. Nd5 {[%clk 0:02:49.9]}
8... c6 {[%clk 0:02:42.8]} 9. Ne3 {[%clk 0:02:49.8]} 9... Be6 {[%clk 0:02:42.4]}
10. d5 {[%clk 0:02:49]} 10... Bd7 {[%clk 0:02:35.3]} 11. Nd4 {[%clk 0:02:45.1]}
11... Nf6 {[%clk 0:02:28.5]} 12. b3 {[%clk 0:02:41.4]} 12... c5 {[%clk
0:02:22.7]} 13. Ndc2 {[%clk 0:02:40.8]} 13... a6 {[%clk 0:02:16.9]} 14. a4
{[%clk 0:02:32.9]} 14... a5 {[%clk 0:01:50.2]} 15. Rb1 {[%clk 0:02:28.4]} 15...
Na6 {[%clk 0:01:49.7]} 16. Na3 {[%clk 0:02:28.8]} 16... Nb4 {[%clk 0:01:48.8]}
17. Bb2 {[%clk 0:02:27.9]} 17... b6 {[%clk 0:01:42]} 18. Qd2 {[%clk 0:02:23.2]}
18... Qc7 {[%clk 0:01:41.9]} 19. f4 {[%clk 0:02:18.6]} 19... Rae8 {[%clk
0:01:40.3]} 20. f5 {[%clk 0:02:16.1]} 20... Bc8 {[%clk 0:01:32]} 21. fxg6 {[%clk
0:02:14.1]} 21... fxg6 {[%clk 0:01:24.4]} 22. Nb5 {[%clk 0:02:14]} 22... Qb8
{[%clk 0:01:23.3]} 23. Nd1 {[%clk 0:02:11.2]} 23... Bd7 {[%clk 0:01:17.9]} 24.
Ndc3 {[%clk 0:02:08.2]} 24... Bxb5 {[%clk 0:01:12.8]} 25. Nxb5 {[%clk
0:02:07.7]} 25... Ng4 {[%clk 0:01:11.1]} 26. Bxg7 {[%clk 0:02:04.2]} 26... Kxg7
{[%clk 0:01:12]} 27. Nc3 {[%clk 0:01:51.2]} 27... h6 {[%clk 0:01:00]} 28. Be4
{[%clk 0:01:42]} 28... Rxf1+ {[%clk 0:00:50]} 29. Rxf1 {[%clk 0:01:40.7]} 29...
Rf8 {[%clk 0:00:50.5]} 30. h3 {[%clk 0:01:35]} 30... Ne5 {[%clk 0:00:43.8]} 31.
Rf4 {[%clk 0:01:33.4]} 31... g5 {[%clk 0:00:41.4]} 32. Rf2 {[%clk 0:01:30.2]}
32... Rxf2 {[%clk 0:00:40.6]} 33. Kxf2 {[%clk 0:01:31.1]} 33... Qf8+ {[%clk
0:00:40.4]} 34. Kg2 {[%clk 0:01:31.6]} 34... Qf6 {[%clk 0:00:39.6]} 35. Bb1
{[%clk 0:01:26.5]} 35... h5 {[%clk 0:00:35.9]} 36. Ne4 {[%clk 0:01:26.4]} 36...
Qh6 {[%clk 0:00:31.3]} 37. Qxg5+ {[%clk 0:01:24.8]} 37... Qxg5 {[%clk
0:00:30.8]} 38. Nxg5 {[%clk 0:01:25.7]} 38... Kf6 {[%clk 0:00:23.3]} 39. Ne4+
{[%clk 0:01:24.2]} 39... Kg7 {[%clk 0:00:21.3]} 40. Kf2 {[%clk 0:01:23.4]} 40...
Na6 {[%clk 0:00:19.3]} 41. Ke3 {[%clk 0:01:22.4]} 41... Nc7 {[%clk 0:00:19.7]}
42. Kf4 {[%clk 0:01:22]} 42... Ne8 {[%clk 0:00:19.6]} 43. Kf5 {[%clk 0:01:19.5]}
43... Nc7 {[%clk 0:00:18.8]} 44. Ng5 {[%clk 0:01:18.1]} 44... Kh6 {[%clk
0:00:18.3]} 45. Ne6 {[%clk 0:01:17.1]} 45... Ne8 {[%clk 0:00:18.8]} 46. Bd3
{[%clk 0:01:13.4]} 46... Nf6 {[%clk 0:00:15.9]} 47. Nc7 {[%clk 0:01:09.5]} 47...
Ne8 {[%clk 0:00:13.7]} 48. Nxe8 {[%clk 0:01:08.7]} 1-0

[Event "Late-Titled-Tuesday-Blitz-January-30-2024"]
[Site "Chess.com"]
[Date "2024.01.30"]
[Round "2"]
[White "Durarbayli"]
[Black "dennisodessa"]
[Result "1-0"]
[WhiteElo "2909"]
[BlackElo "2598"]
[TimeControl "180+1"]
[EndTime "14:16:55 PST"]
[Termination "Durarbayli won by resignation"]

1. c4 {[%clk 0:03:00.9]} 1... Nf6 {[%clk 0:02:57.4]} 2. Nc3 {[%clk 0:03:00.3]}
2... e5 {[%clk 0:02:57.6]} 3. g3 {[%clk 0:02:58.9]} 3... Nc6 {[%clk 0:02:55.2]}
4. Bg2 {[%clk 0:02:58.7]} 4... Bc5 {[%clk 0:02:55.5]} 5. e3 {[%clk 0:02:58.1]}
5... a6 {[%clk 0:02:56.1]} 6. Nge2 {[%clk 0:02:58.4]} 6... Ba7 {[%clk
0:02:56.7]} 7. O-O {[%clk 0:02:58.5]} 7... O-O {[%clk 0:02:56.3]} 8. d4 {[%clk
0:02:56.7]} 8... d6 {[%clk 0:02:56.9]} 9. h3 {[%clk 0:02:56.7]} 9... Re8 {[%clk
0:02:51.6]} 10. Kh2 {[%clk 0:02:27.6]} 10... h6 {[%clk 0:02:43.6]} 11. b3 {[%clk
0:02:01.2]} 11... exd4 {[%clk 0:02:42.2]} 12. exd4 {[%clk 0:01:58.5]} 12... Bf5
{[%clk 0:02:41.6]} 13. Be3 {[%clk 0:01:57.7]} 13... Ne4 {[%clk 0:02:40.9]} 14.
Nd5 {[%clk 0:01:40.7]} 14... Qd7 {[%clk 0:02:27.7]} 15. Bxh6 {[%clk 0:01:27.1]}
15... Ne7 {[%clk 0:02:03.1]} 16. Nxe7+ {[%clk 0:01:17.1]} 16... Qxe7 {[%clk
0:02:04]} 17. Be3 {[%clk 0:01:17.6]} 17... Qf6 {[%clk 0:01:52.5]} 18. Nf4 {[%clk
0:01:09.2]} 18... c6 {[%clk 0:01:49.4]} 19. Re1 {[%clk 0:00:57.5]} 19... Re7
{[%clk 0:01:33]} 20. d5 {[%clk 0:00:52.5]} 20... Nxf2 {[%clk 0:01:25]} 21. Bxf2
{[%clk 0:00:26.2]} 21... Bxf2 {[%clk 0:01:25.9]} 22. Rxe7 {[%clk 0:00:26.7]}
22... Qxe7 {[%clk 0:01:26.6]} 23. dxc6 {[%clk 0:00:27.3]} 23... Bxg3+ {[%clk
0:01:09.4]} 24. Kxg3 {[%clk 0:00:24.6]} 24... Qg5+ {[%clk 0:01:10.3]} 25. Kf3
{[%clk 0:00:19.6]} 25... Re8 {[%clk 0:01:11]} 26. Qd4 {[%clk 0:00:13.8]} 26...
Qh4 {[%clk 0:01:08.2]} 27. cxb7 {[%clk 0:00:09.4]} 27... g5 {[%clk 0:01:00.4]}
28. Rg1 {[%clk 0:00:10]} 28... gxf4 {[%clk 0:00:56]} 29. Bf1+ {[%clk 0:00:09.5]}
29... Kf8 {[%clk 0:00:56.5]} 30. Qxd6+ {[%clk 0:00:08.8]} 30... Qe7 {[%clk
0:00:47.7]} 31. b8=Q {[%clk 0:00:09.3]} 31... Rxb8 {[%clk 0:00:45.4]} 32. Qxb8+
{[%clk 0:00:08.5]} 32... Qe8 {[%clk 0:00:46.3]} 33. Qxe8+ {[%clk 0:00:08.3]}
33... Kxe8 {[%clk 0:00:47.2]} 34. Kxf4 {[%clk 0:00:09.2]} 1-0

[Event "Late-Titled-Tuesday-Blitz-January-30-2024"]
[Site "Chess.com"]
[Date "2024.01.30"]
[Round "2"]
[White "FairChess_on_YouTube"]
[Black "Mackster23"]
[Result "1-0"]
[WhiteElo "3086"]
[BlackElo "2659"]
[TimeControl "180+1"]
[EndTime "14:17:11 PST"]
[Termination "FairChess_on_YouTube won by resignation"]

1. e4 {[%clk 0:03:00.9]} 1... c5 {[%clk 0:02:59.7]} 2. Nc3 {[%clk 0:03:00.4]}
2... d6 {[%clk 0:03:00.1]} 3. Nge2 {[%clk 0:02:59.6]} 3... Nf6 {[%clk 0:03:00]}
4. h3 {[%clk 0:03:00.2]} 4... g6 {[%clk 0:02:59.2]} 5. g4 {[%clk 0:02:59]} 5...
Bg7 {[%clk 0:02:57.6]} 6. Bg2 {[%clk 0:02:59.6]} 6... Nc6 {[%clk 0:02:57.5]} 7.
d3 {[%clk 0:02:59.9]} 7... O-O {[%clk 0:02:57.4]} 8. Be3 {[%clk 0:02:59]} 8...
Rb8 {[%clk 0:02:57.1]} 9. Qd2 {[%clk 0:02:58.8]} 9... b5 {[%clk 0:02:57.1]} 10.
Bh6 {[%clk 0:02:58.9]} 10... b4 {[%clk 0:02:56.1]} 11. Nd5 {[%clk 0:02:57.2]}
11... e6 {[%clk 0:02:55.8]} 12. Bxg7 {[%clk 0:02:55.6]} 12... Kxg7 {[%clk
0:02:55.8]} 13. Ne3 {[%clk 0:02:52.5]} 13... Nd4 {[%clk 0:02:26.5]} 14. f4
{[%clk 0:02:48]} 14... Ba6 {[%clk 0:02:14.5]} 15. O-O {[%clk 0:02:46.6]} 15...
Nxe2+ {[%clk 0:02:04.2]} 16. Qxe2 {[%clk 0:02:46.7]} 16... d5 {[%clk 0:01:50.3]}
17. e5 {[%clk 0:02:43.2]} 17... Nd7 {[%clk 0:01:47.9]} 18. g5 {[%clk 0:02:43.7]}
18... h5 {[%clk 0:01:44.2]} 19. gxh6+ {[%clk 0:02:39.8]} 19... Kxh6 {[%clk
0:01:42.6]} 20. Qg4 {[%clk 0:02:29.9]} 20... d4 {[%clk 0:01:33.6]} 21. Nd1
{[%clk 0:02:23.9]} 21... Kg7 {[%clk 0:01:29]} 22. Nf2 {[%clk 0:02:23.7]} 22...
Rh8 {[%clk 0:01:27]} 23. Ne4 {[%clk 0:02:21.9]} 23... Bb7 {[%clk 0:01:21.1]} 24.
Nd6 {[%clk 0:02:21.7]} 24... Bxg2 {[%clk 0:01:16.1]} 25. Qxg2 {[%clk 0:02:22.6]}
25... Qh4 {[%clk 0:01:14]} 26. Rf3 {[%clk 0:02:22.2]} 26... Nb6 {[%clk
0:01:06.2]} 27. f5 {[%clk 0:02:16.1]} 27... Rhf8 {[%clk 0:01:02.8]} 28. Raf1
{[%clk 0:02:15]} 28... Nd5 {[%clk 0:00:58.7]} 29. f6+ {[%clk 0:01:10.9]} 29...
Kg8 {[%clk 0:00:50.4]} 30. Rg3 {[%clk 0:01:11]} 30... Qh6 {[%clk 0:00:43]} 31.
Rg5 {[%clk 0:00:56]} 31... Ne3 {[%clk 0:00:38.6]} 32. Qg3 {[%clk 0:00:56.4]}
32... Nxf1 {[%clk 0:00:37]} 33. Kxf1 {[%clk 0:00:57.3]} 33... Rbd8 {[%clk
0:00:30.3]} 34. h4 {[%clk 0:00:56.3]} 34... Kh8 {[%clk 0:00:20.1]} 35. Qg4
{[%clk 0:00:45.7]} 35... Rxd6 {[%clk 0:00:16.1]} 36. exd6 {[%clk 0:00:46.6]}
36... Rd8 {[%clk 0:00:16.5]} 37. Qf4 {[%clk 0:00:38.3]} 37... Qf8 {[%clk
0:00:14.9]} 38. Rxc5 {[%clk 0:00:38.2]} 38... Qxd6 {[%clk 0:00:13.8]} 39. Qh6+
{[%clk 0:00:37.2]} 1-0

[Event "Late-Titled-Tuesday-Blitz-January-30-2024"]
[Site "Chess.com"]
[Date "2024.01.30"]
[Round "2"]
[White "Road2GM3000"]
[Black "ogpin"]
[Result "1-0"]
[WhiteElo "2502"]
[BlackElo "2224"]
[TimeControl "180+1"]
[EndTime "14:17:11 PST"]
[Termination "Road2GM3000 won by checkmate"]

1. d4 {[%clk 0:03:00.6]} 1... Nf6 {[%clk 0:02:58.8]} 2. c4 {[%clk 0:03:01]} 2...
e6 {[%clk 0:02:58.7]} 3. Nc3 {[%clk 0:03:01.7]} 3... Bb4 {[%clk 0:02:59.2]} 4.
Nf3 {[%clk 0:03:01.9]} 4... O-O {[%clk 0:02:59.1]} 5. Bg5 {[%clk 0:03:02]} 5...
h6 {[%clk 0:02:57.6]} 6. Bh4 {[%clk 0:03:02.8]} 6... d6 {[%clk 0:02:57.6]} 7. e3
{[%clk 0:02:59.6]} 7... Nbd7 {[%clk 0:02:57.8]} 8. Bd3 {[%clk 0:03:00.1]} 8...
e5 {[%clk 0:02:57.3]} 9. O-O {[%clk 0:02:54.5]} 9... Bxc3 {[%clk 0:02:51.7]} 10.
bxc3 {[%clk 0:02:54.8]} 10... g5 {[%clk 0:02:51.7]} 11. Nxg5 {[%clk 0:02:55.2]}
11... hxg5 {[%clk 0:02:50.6]} 12. Bxg5 {[%clk 0:02:56.1]} 12... Kg7 {[%clk
0:02:33.6]} 13. f4 {[%clk 0:02:55.5]} 13... exd4 {[%clk 0:02:31.7]} 14. cxd4
{[%clk 0:02:52.6]} 14... Qe8 {[%clk 0:02:32]} 15. Qf3 {[%clk 0:02:47.6]} 15...
Rh8 {[%clk 0:02:17.5]} 16. e4 {[%clk 0:02:45.7]} 16... Nh7 {[%clk 0:01:59.4]}
17. Bh4 {[%clk 0:02:41.7]} 17... Ndf6 {[%clk 0:01:59.4]} 18. e5 {[%clk
0:02:36.2]} 18... Ng4 {[%clk 0:01:46]} 19. f5 {[%clk 0:02:28.2]} 19... Nxe5
{[%clk 0:01:39.6]} 20. dxe5 {[%clk 0:02:15.7]} 20... Qxe5 {[%clk 0:01:40.5]} 21.
Rae1 {[%clk 0:02:03.8]} 21... Qd4+ {[%clk 0:01:30.8]} 22. Bf2 {[%clk 0:02:04.2]}
22... Qf6 {[%clk 0:01:27.9]} 23. Qg4+ {[%clk 0:01:59.3]} 23... Qg5 {[%clk
0:01:26.2]} 24. Bd4+ {[%clk 0:01:59]} 24... f6 {[%clk 0:01:13.4]} 25. Re7+
{[%clk 0:01:35.4]} 25... Kf8 {[%clk 0:01:12.6]} 26. Qe4 {[%clk 0:01:36]} 26...
Rg8 {[%clk 0:01:01.3]} 27. Re8+ {[%clk 0:00:35.3]} 27... Kg7 {[%clk 0:00:59]}
28. Qe7+ {[%clk 0:00:19.8]} 28... Kh8 {[%clk 0:00:59]} 29. Rxg8+ {[%clk
0:00:19.5]} 29... Qxg8 {[%clk 0:00:59.9]} 30. Rf3 {[%clk 0:00:17.5]} 30... c5
{[%clk 0:00:42.9]} 31. Bxf6+ {[%clk 0:00:17]} 31... Nxf6 {[%clk 0:00:43.8]} 32.
Qxf6+ {[%clk 0:00:17.2]} 32... Qg7 {[%clk 0:00:44.4]} 33. Rh3+ {[%clk
0:00:17.9]} 33... Kg8 {[%clk 0:00:44.5]} 34. Rg3 {[%clk 0:00:18.6]} 34... Qxg3
{[%clk 0:00:42.8]} 35. hxg3 {[%clk 0:00:19.5]} 35... Bd7 {[%clk 0:00:42]} 36.
Qxd6 {[%clk 0:00:19.1]} 36... Bc6 {[%clk 0:00:42.9]} 37. f6 {[%clk 0:00:18.9]}
37... Re8 {[%clk 0:00:37]} 38. Bg6 {[%clk 0:00:18.8]} 38... Rf8 {[%clk
0:00:33.3]} 39. Qe7 {[%clk 0:00:18.4]} 39... b5 {[%clk 0:00:31.8]} 40. Qg7#
{[%clk 0:00:17.7]} 1-0

[Event "Late-Titled-Tuesday-Blitz-January-30-2024"]
[Site "Chess.com"]
[Date "2024.01.30"]
[Round "2"]
[White "Bala-Afiada"]
[Black "ural58"]
[Result "0-1"]
[WhiteElo "2020"]
[BlackElo "2451"]
[TimeControl "180+1"]
[EndTime "14:17:11 PST"]
[Termination "ural58 won by resignation"]

1. d4 {[%clk 0:03:00.9]} 1... d5 {[%clk 0:02:28.7]} 2. c4 {[%clk 0:02:59.9]}
2... e5 {[%clk 0:02:28.1]} 3. dxe5 {[%clk 0:02:59.8]} 3... d4 {[%clk 0:02:28.1]}
4. Nf3 {[%clk 0:03:00.3]} 4... Nc6 {[%clk 0:02:28.3]} 5. g3 {[%clk 0:03:00.8]}
5... Nge7 {[%clk 0:02:28.1]} 6. Bg2 {[%clk 0:03:01.4]} 6... Ng6 {[%clk
0:02:28.6]} 7. O-O {[%clk 0:03:00.8]} 7... Ngxe5 {[%clk 0:02:28.7]} 8. Bf4
{[%clk 0:02:53]} 8... Ng6 {[%clk 0:02:24.6]} 9. Bg5 {[%clk 0:02:45.8]} 9... f6
{[%clk 0:02:20.2]} 10. Bd2 {[%clk 0:02:40.9]} 10... h5 {[%clk 0:02:20.3]} 11. h4
{[%clk 0:02:35.8]} 11... Bg4 {[%clk 0:02:15.8]} 12. Qc2 {[%clk 0:02:28.5]} 12...
Kf7 {[%clk 0:02:05.7]} 13. Na3 {[%clk 0:02:07]} 13... Bxa3 {[%clk 0:02:00.7]}
14. bxa3 {[%clk 0:02:07.9]} 14... Rb8 {[%clk 0:01:58.7]} 15. Rfe1 {[%clk
0:01:49.7]} 15... Re8 {[%clk 0:01:44.9]} 16. Rab1 {[%clk 0:01:37.1]} 16... Qd7
{[%clk 0:01:33.8]} 17. Rb5 {[%clk 0:01:34.4]} 17... Nce7 {[%clk 0:01:19.9]} 18.
Qd3 {[%clk 0:01:24]} 18... c6 {[%clk 0:01:19.5]} 19. Rbb1 {[%clk 0:01:13.1]}
19... Bf5 {[%clk 0:01:19]} 20. Qb3 {[%clk 0:01:10.1]} 20... Bxb1 {[%clk
0:01:18.1]} 21. Rxb1 {[%clk 0:01:04]} 21... c5 {[%clk 0:01:12.2]} 22. Qd3 {[%clk
0:00:57.6]} 22... Nc6 {[%clk 0:01:05.9]} 23. e3 {[%clk 0:00:33.4]} 23... Rbd8
{[%clk 0:01:02.2]} 24. exd4 {[%clk 0:00:30.3]} 24... Nxd4 {[%clk 0:00:59.6]} 25.
Nxd4 {[%clk 0:00:29.3]} 25... Qxd4 {[%clk 0:00:59.5]} 26. Rxb7+ {[%clk
0:00:29.5]} 26... Re7 {[%clk 0:00:56.7]} 27. Rxe7+ {[%clk 0:00:20.5]} 27... Nxe7
{[%clk 0:00:54.5]} 28. Qxd4 {[%clk 0:00:19.8]} 28... Rxd4 {[%clk 0:00:53.6]} 29.
Be3 {[%clk 0:00:19.4]} 29... Rxc4 {[%clk 0:00:53.1]} 30. g4 {[%clk 0:00:18.1]}
30... hxg4 {[%clk 0:00:51.9]} 31. Kh2 {[%clk 0:00:18.5]} 31... Rc2 {[%clk
0:00:49.7]} 32. Kg3 {[%clk 0:00:16.6]} 32... Nf5+ {[%clk 0:00:49.1]} 33. Kf4
{[%clk 0:00:16.5]} 33... Nxe3 {[%clk 0:00:50]} 34. Kxe3 {[%clk 0:00:17.4]} 34...
Rc3+ {[%clk 0:00:49.7]} 35. Kd2 {[%clk 0:00:17.4]} 35... Rxa3 {[%clk 0:00:50.6]}
36. Bd5+ {[%clk 0:00:17.7]} 36... Ke7 {[%clk 0:00:50.3]} 37. Kc2 {[%clk
0:00:16.5]} 37... Rh3 {[%clk 0:00:50.1]} 38. h5 {[%clk 0:00:16.3]} 38... Rxh5
{[%clk 0:00:50]} 39. Be4 {[%clk 0:00:15.7]} 39... Rh2 {[%clk 0:00:48.9]} 40. Kc3
{[%clk 0:00:12.7]} 40... Rxf2 {[%clk 0:00:49.8]} 41. Bd5 {[%clk 0:00:12.7]}
41... g3 {[%clk 0:00:49.3]} 42. Kc4 {[%clk 0:00:13.1]} 42... g2 {[%clk
0:00:49.3]} 0-1

[Event "Late-Titled-Tuesday-Blitz-January-30-2024"]
[Site "Chess.com"]
[Date "2024.01.30"]
[Round "2"]
[White "Lennis93"]
[Black "MaxLeto"]
[Result "1-0"]
[WhiteElo "2703"]
[BlackElo "2405"]
[TimeControl "180+1"]
[EndTime "14:17:15 PST"]
[Termination "Lennis93 won by checkmate"]

1. c4 {[%clk 0:03:00.9]} 1... e5 {[%clk 0:03:00]} 2. Nc3 {[%clk 0:03:01]} 2...
Nc6 {[%clk 0:03:00.5]} 3. g3 {[%clk 0:03:01.3]} 3... g6 {[%clk 0:02:59.2]} 4.
Bg2 {[%clk 0:03:01.8]} 4... Bg7 {[%clk 0:02:59.9]} 5. Rb1 {[%clk 0:03:01]} 5...
Nge7 {[%clk 0:02:58]} 6. b4 {[%clk 0:03:01.5]} 6... O-O {[%clk 0:02:57.7]} 7. b5
{[%clk 0:03:01.2]} 7... Nd4 {[%clk 0:02:57.8]} 8. e3 {[%clk 0:03:01.8]} 8... Ne6
{[%clk 0:02:58.2]} 9. Nge2 {[%clk 0:03:02.4]} 9... c6 {[%clk 0:02:54.7]} 10. Ba3
{[%clk 0:02:56.7]} 10... Re8 {[%clk 0:02:41.4]} 11. O-O {[%clk 0:02:53.1]} 11...
Nf5 {[%clk 0:02:22.6]} 12. d3 {[%clk 0:02:34.3]} 12... d6 {[%clk 0:02:12.3]} 13.
Qb3 {[%clk 0:02:33.4]} 13... Qc7 {[%clk 0:02:02.3]} 14. Rfd1 {[%clk 0:02:29.8]}
14... Bd7 {[%clk 0:01:53]} 15. Ne4 {[%clk 0:02:29.4]} 15... c5 {[%clk
0:01:29.5]} 16. N2c3 {[%clk 0:02:28.1]} 16... Rad8 {[%clk 0:01:25.3]} 17. Nd5
{[%clk 0:02:27.8]} 17... Qb8 {[%clk 0:01:24.5]} 18. b6 {[%clk 0:02:27.6]} 18...
Bc6 {[%clk 0:01:20.7]} 19. Nec3 {[%clk 0:02:25.5]} 19... axb6 {[%clk 0:01:07.6]}
20. Nxb6 {[%clk 0:02:26.4]} 20... Qa7 {[%clk 0:01:06.7]} 21. Bb2 {[%clk
0:02:22.6]} 21... h5 {[%clk 0:00:54.6]} 22. a4 {[%clk 0:02:19.4]} 22... h4
{[%clk 0:00:53.5]} 23. Ncd5 {[%clk 0:02:17.5]} 23... hxg3 {[%clk 0:00:52.1]} 24.
hxg3 {[%clk 0:02:18.4]} 24... Ne7 {[%clk 0:00:47.2]} 25. Ra1 {[%clk 0:02:16.1]}
25... Qb8 {[%clk 0:00:41.3]} 26. a5 {[%clk 0:02:15.8]} 26... Nc7 {[%clk
0:00:41.7]} 27. Nxe7+ {[%clk 0:02:14]} 27... Rxe7 {[%clk 0:00:41]} 28. Bxc6
{[%clk 0:02:14.7]} 28... bxc6 {[%clk 0:00:41.2]} 29. Qa4 {[%clk 0:02:09.8]}
29... Qb7 {[%clk 0:00:35.8]} 30. Bc3 {[%clk 0:02:10.3]} 30... Na6 {[%clk
0:00:33.6]} 31. Rdb1 {[%clk 0:02:10.2]} 31... Qc7 {[%clk 0:00:33.5]} 32. Rb2
{[%clk 0:02:05.4]} 32... d5 {[%clk 0:00:31.2]} 33. cxd5 {[%clk 0:01:54.9]} 33...
cxd5 {[%clk 0:00:32.1]} 34. Qb5 {[%clk 0:01:55.2]} 34... Qa7 {[%clk 0:00:24]}
35. e4 {[%clk 0:01:54.2]} 35... c4 {[%clk 0:00:14.9]} 36. Nxd5 {[%clk
0:01:53.2]} 36... Red7 {[%clk 0:00:12.3]} 37. dxc4 {[%clk 0:01:52.9]} 37... Nc5
{[%clk 0:00:12.8]} 38. Re2 {[%clk 0:01:44.4]} 38... Rb7 {[%clk 0:00:09.7]} 39.
Nb6 {[%clk 0:01:43.9]} 39... Ne6 {[%clk 0:00:06.2]} 40. Bxe5 {[%clk 0:01:42.6]}
40... Bxe5 {[%clk 0:00:05.5]} 41. Qxe5 {[%clk 0:01:42.4]} 41... Nd4 {[%clk
0:00:06.4]} 42. Re3 {[%clk 0:01:11.5]} 42... Rxb6 {[%clk 0:00:06.9]} 43. Kg2
{[%clk 0:01:04.8]} 43... Re6 {[%clk 0:00:05.8]} 44. Qg5 {[%clk 0:01:03]} 44...
Rc8 {[%clk 0:00:04.3]} 45. Rh1 {[%clk 0:01:02]} 45... Rxc4 {[%clk 0:00:01.5]}
46. Qh6 {[%clk 0:01:01.7]} 46... f6 {[%clk 0:00:01.7]} 47. Qh8+ {[%clk
0:01:01.3]} 47... Kf7 {[%clk 0:00:01.9]} 48. Rh7# {[%clk 0:01:01.6]} 1-0

[Event "Late-Titled-Tuesday-Blitz-January-30-2024"]
[Site "Chess.com"]
[Date "2024.01.30"]
[Round "2"]
[White "rhungaski"]
[Black "Meri-Arabidze"]
[Result "0-1"]
[WhiteElo "2509"]
[BlackElo "2750"]
[TimeControl "180+1"]
[EndTime "14:17:16 PST"]
[Termination "Meri-Arabidze won on time"]

1. e4 {[%clk 0:03:00.9]} 1... c5 {[%clk 0:03:00]} 2. Nf3 {[%clk 0:02:59.9]} 2...
e6 {[%clk 0:03:00]} 3. d4 {[%clk 0:02:59.9]} 3... cxd4 {[%clk 0:03:00.9]} 4.
Nxd4 {[%clk 0:03:00.3]} 4... Nc6 {[%clk 0:03:01.3]} 5. Nb5 {[%clk 0:02:59.8]}
5... d6 {[%clk 0:03:01.3]} 6. c4 {[%clk 0:02:59.2]} 6... Nf6 {[%clk 0:03:01.2]}
7. N1c3 {[%clk 0:02:59.4]} 7... a6 {[%clk 0:03:01.4]} 8. Na3 {[%clk 0:02:59.7]}
8... Be7 {[%clk 0:03:02.1]} 9. Be2 {[%clk 0:03:00]} 9... O-O {[%clk 0:03:02.4]}
10. O-O {[%clk 0:02:56.8]} 10... b6 {[%clk 0:03:03]} 11. Bf4 {[%clk 0:02:56.5]}
11... Bb7 {[%clk 0:03:00.2]} 12. Re1 {[%clk 0:02:56.7]} 12... Rc8 {[%clk
0:02:54.4]} 13. Bf1 {[%clk 0:02:55.4]} 13... Ne5 {[%clk 0:02:54]} 14. Rc1 {[%clk
0:02:50.9]} 14... Qc7 {[%clk 0:02:53]} 15. h3 {[%clk 0:02:47.9]} 15... Rfd8
{[%clk 0:02:52.6]} 16. Qd2 {[%clk 0:02:47]} 16... h6 {[%clk 0:02:48.8]} 17. Bh2
{[%clk 0:02:44.6]} 17... Qb8 {[%clk 0:02:39.1]} 18. Qe3 {[%clk 0:02:41]} 18...
Bc6 {[%clk 0:02:25.6]} 19. b4 {[%clk 0:02:38.6]} 19... Qb7 {[%clk 0:02:04.8]}
20. b5 {[%clk 0:01:58]} 20... axb5 {[%clk 0:02:05.7]} 21. cxb5 {[%clk
0:01:58.1]} 21... Be8 {[%clk 0:02:05.2]} 22. Na4 {[%clk 0:01:41.5]} 22... Ned7
{[%clk 0:02:03]} 23. Nc4 {[%clk 0:01:11.9]} 23... Nxe4 {[%clk 0:01:56.4]} 24.
Ncxb6 {[%clk 0:00:49.1]} 24... Rxc1 {[%clk 0:01:55.2]} 25. Rxc1 {[%clk
0:00:46.3]} 25... Bg5 {[%clk 0:01:43.9]} 26. f4 {[%clk 0:00:31.1]} 26... Bf6
{[%clk 0:01:44]} 27. Bd3 {[%clk 0:00:13.2]} 27... Ndc5 {[%clk 0:01:31.1]} 28.
Bxe4 {[%clk 0:00:09]} 28... Nxe4 {[%clk 0:01:30.7]} 29. f5 {[%clk 0:00:08.8]}
29... e5 {[%clk 0:01:24.2]} 30. Qd3 {[%clk 0:00:07.5]} 30... d5 {[%clk
0:01:14.2]} 31. Kf1 {[%clk 0:00:06.6]} 31... d4 {[%clk 0:01:07.7]} 32. Bg1
{[%clk 0:00:05.7]} 32... Bg5 {[%clk 0:01:04.4]} 33. Rc2 {[%clk 0:00:05.6]} 33...
Nd6 {[%clk 0:01:00]} 34. Qf3 {[%clk 0:00:03.8]} 34... Bxb5+ {[%clk 0:00:59.2]}
35. Ke1 {[%clk 0:00:02.8]} 35... e4 {[%clk 0:00:53.5]} 36. Qb3 {[%clk
0:00:02.3]} 36... d3 {[%clk 0:00:47.7]} 37. Rc5 {[%clk 0:00:01.9]} 37... e3
{[%clk 0:00:40.8]} 0-1